fUSD/lending_fUSD_20251123
["ID","MTS","AMOUNT","RATE_DAILY","PERIOD"]
[394682157,1763871042908,-478.92,0.00035708,2]
[394682158,1763871042918,-486.51,0.00035708,2]
[394682159,1763871042927,-478.07,0.00035708,2]
[394682160,1763871042937,-8158.44541032,0.00035851,3]
[394682167,1763871044224,-237.873452,0.00035708,2]
[394682168,1763871044234,-408.36690855,0.00035851,3]
[394682169,1763871044243,-1205.08658709,0.00035861,2]
[394682170,1763871044253,-215.57079,0.00035888,30]
[394682171,1763871044262,-877.81700683,0.0003589,14]
[394682172,1763871044271,-199.0,0.0003589,7]
[394682173,1763871044280,-887.27900457,0.000359,2]
[394682174,1763871044290,-2176.61036096,0.00035962,2]
[394682175,1763871044301,-541.90514706,0.00035962,2]
[394682202,1763872232354,-506.02,0.000162,5]
[394682209,1763872232407,-1182.08953082,0.000162,5]
[394682214,1763872232461,-421.8679983,0.000162,5]
[394682215,1763872232519,-299.63701533,0.000162,5]
[394682216,1763872232619,-1216.353793,0.000162,5]
[394682226,1763872240354,-1374.03590465,0.000162,5]
[394682227,1763872240365,-174.33194221,0.0001762,2]
[394682228,1763872240375,-327.0,0.0001762,2]
[394682229,1763872240386,-300.0,0.0001782,2]
[394682230,1763872240396,-300.0,0.0001782,2]
[394682231,1763872240406,-1200.0,0.00019199,2]
[394682232,1763872240416,-150.0,0.000192,7]
[394682233,1763872240427,-245.24006779,0.000192,2]
[394682234,1763872240437,-1055.0,0.00019999,2]
[394682235,1763872240447,-300.0,0.00019999,2]
[394682236,1763872240457,-1520.67237661,0.0002,5]
[394682237,1763872240469,-1778.32716795,0.0002,5]
[394682238,1763872240482,-518.49455671,0.0002,5]
[394682239,1763872240630,-0.51454079,0.0002112,2]
[394682240,1763872240665,-302.03208624,0.0002112,2]
[394682241,1763872240676,-162.278,0.00021256,2]
[394682242,1763872240686,-1035.68991376,0.00021256,2]
[394682243,1763872240787,-1841.92708624,0.00021256,2]
[394682244,1763872240798,-226.975,0.00021256,2]
[394682245,1763872240808,-426.78462315,0.00025261,2]
[394682247,1763872240818,-553.64,0.00027168,2]
[394682249,1763872240828,-1000.0,0.000279,2]
[394682251,1763872240837,-1902.779,0.00028,120]
[394682252,1763872240846,-225.54,0.000287,14]
[394682254,1763872240855,-2951.05,0.00032446,2]
[394682257,1763872240865,-1057.27867619,0.00033,2]
[394682258,1763872240875,-406.797,0.00033,34]
[394682260,1763872240885,-225.22791879,0.000345,120]
[394682269,1763872244815,-333.2322,0.0001752,2]
[394682270,1763872244824,-6221.8748295,0.000345,120]
[394682271,1763872244834,-999.0,0.00034932,3]
[394682272,1763872244843,-629.80719853,0.00035,120]
[394682273,1763872244853,-2271.9432865,0.000352,2]
[394682274,1763872244862,-300.0,0.00035297,2]
[394682275,1763872244871,-860.8,0.00035364,5]
[394682276,1763872244880,-500.0,0.0003551,2]
[394682277,1763872244890,-4130.89,0.00035544,2]
[394682278,1763872244899,-2000.0,0.00035782,3]
[394682279,1763872244908,-500.0,0.00035826,5]
[394682280,1763872244917,-200.0,0.00035846,2]
[394682281,1763872244927,-590.14153772,0.00035873,120]
[394682282,1763872244937,-150.0,0.00035877,2]
[394682283,1763872244946,-250.0,0.00035887,2]
[394682284,1763872244955,-17200.0,0.000359,2]
[394682285,1763872244964,-255.09798096,0.000359,2]
[394682286,1763872244974,-441.40935646,0.00035962,4]
[394682287,1763872244984,-1224.14107,0.00035962,2]
[394682288,1763872244994,-500.0,0.00035973,5]
[394682289,1763872245003,-289.4701065,0.00035973,5]
[394682290,1763872245012,-500.0,0.00035973,5]
[394682291,1763872245021,-500.0,0.00035973,5]
[394682292,1763872245031,-1000.0,0.00035978,2]
[394682293,1763872245039,-600.0,0.00035978,2]
[394682294,1763872245048,-221.3137655,0.00035993,120]
[394682295,1763872245057,-199.0,0.00035999,7]
[394682296,1763872245067,-497.94291563,0.00036,2]
[394682297,1763872245078,-536.54708437,0.00036,2]
[394682298,1763872245088,-293.38333888,0.00036,2]
[394682299,1763872245110,-465.50068337,0.00036,2]
[394682300,1763872245351,-231254.21798889,0.00036,2]
[394682301,1763872245362,-1060.17860221,0.00036,2]
[394682302,1763872245371,-300.0,0.00036,120]
[394682303,1763872245381,-10986.95708861,0.00036,2]
[394682304,1763872245390,-150.0,0.00036,7]
[394682305,1763872245400,-150.0,0.00036,7]
[394682306,1763872245410,-150.0,0.00036,7]
[394682307,1763872245420,-150.0,0.00036,7]
[394682308,1763872245431,-150.00000001,0.00036,7]
[394682309,1763872245441,-150.0,0.00036,7]
[394682310,1763872245452,-215.57079,0.00036088,30]
[394682311,1763872245462,-428.94,0.00036119,2]
[394682312,1763872245472,-424.71,0.00036119,2]
[394682313,1763872245482,-177.45,0.00036119,2]
[394682314,1763872245492,-302.54,0.00036119,2]
[394682315,1763872245502,-302.01,0.00036119,2]
[394682316,1763872245511,-215.57079,0.00036288,30]
[394682317,1763872245521,-2207.86144492,0.00036456,2]
[394682318,1763872245532,-215.57079,0.00036488,30]
[394682319,1763872245541,-187.95,0.000365,30]
[394682320,1763872245551,-199.0,0.00036547,8]
[394682321,1763872245560,-255.09798092,0.00036614,2]
[394682323,1763872245570,-215.57079,0.00036688,30]
[394682325,1763872245579,-150.0,0.00036688,30]
[394682327,1763872245589,-500.0,0.00036688,30]
[394682328,1763872245599,-150.0,0.00036688,30]
[394682330,1763872245609,-1034.49,0.0003672,2]
[394682332,1763872245619,-500.0,0.00036825,30]
[394682334,1763872245628,-150.0,0.00036825,30]
[394682336,1763872245638,-718.5693,0.00036888,7]
[394682338,1763872245647,-215.57079,0.00036888,30]
[394682339,1763872245656,-153.70266157,0.00036941,2]
[394682340,1763872245665,-150.0,0.00036941,2]
[394682341,1763872245676,-157.68908016,0.00036941,2]
[394682342,1763872245686,-165.18496451,0.00036941,2]
[394682343,1763872245695,-153.3100467,0.00036941,2]
[394682344,1763872245704,-152.73730016,0.00036941,2]
[394682345,1763872245713,-232.0,0.00036962,30]
[394682346,1763872245722,-284.0,0.00036962,30]
[394682347,1763872245731,-250.0,0.00036986,5]
[394682348,1763872245741,-472.61,0.00036986,30]
[394682349,1763872245750,-500.0,0.00037,120]
[394682350,1763872245759,-2207.86144492,0.00037011,2]
[394682351,1763872245768,-215.57079,0.00037088,30]
[394682352,1763872245778,-199.0,0.00037095,9]
[394682353,1763872245787,-3446.40817865,0.00037212,4]
[394682354,1763872245796,-330.34719608,0.00037222,7]
[394682355,1763872245805,-215.57079,0.00037288,30]
[394682356,1763872245814,-3446.40817865,0.0003729,4]
[394682357,1763872245824,-7488.57,0.000373,14]
[394682358,1763872245834,-255.09798092,0.00037329,2]
[394682359,1763872245843,-3446.40817865,0.00037411,4]
[394682360,1763872245853,-1034.49,0.0003744,2]
[394682361,1763872245863,-3843.81242984,0.00037461,2]
[394682362,1763872245872,-215.57079,0.00037488,30]
[394682363,1763872245882,-6892.8163573,0.00037551,4]
[394682364,1763872245892,-774.16902613,0.00037561,30]
[394682365,1763872245902,-502.98972929,0.00037561,30]
[394682366,1763872245912,-683.54597228,0.00037561,30]
[394682367,1763872245922,-614.63438454,0.00037561,30]
[394682368,1763872245933,-587.67612233,0.00037561,30]
[394682369,1763872245943,-508.10361827,0.00037561,30]
[394682370,1763872245953,-614.63438453,0.00037561,30]
[394682371,1763872245963,-614.63438453,0.00037561,30]
[394682372,1763872245972,-614.63438453,0.00037561,30]
[394682373,1763872245982,-614.76623065,0.00037561,30]
[394682374,1763872245989,-643.27521076,0.00037561,30]
[394682375,1763872245998,-2207.86144492,0.00037567,2]
[394682376,1763872246007,-199.0,0.00037643,10]
[394682377,1763872246017,-215.57079,0.00037688,30]
[394682378,1763872246027,-3446.40817865,0.00037762,4]
[394682379,1763872246036,-180.77,0.00037772,2]
[394682380,1763872246046,-177.57,0.00037772,2]
[394682381,1763872246055,-177.57,0.00037772,2]
[394682382,1763872246064,-177.57,0.00037772,2]
[394682383,1763872246073,-688.46,0.00037774,2]
[394682384,1763872246081,-3843.81242981,0.00037843,2]
[394682385,1763872246089,-199.76232861,0.0003788,2]
[394682386,1763872246098,-215.57079,0.00037888,30]
[394682387,1763872246110,-262.53390641,0.0003789,15]
[394682388,1763872246120,-6892.8163573,0.0003796,4]
[394682389,1763872246129,-1224.14107,0.00037962,2]
[394682390,1763872246139,-6892.8163573,0.0003797,4]
[394682391,1763872246150,-3446.40817865,0.00037971,4]
[394682392,1763872246159,-6892.8163573,0.0003798,4]
[394682393,1763872246168,-10339.224536,0.0003799,4]
[394682394,1763872246180,-2000.0,0.00038,2]
[394682395,1763872246191,-7488.57,0.00038,14]
[394682396,1763872246202,-300.0,0.00038,120]
[394682397,1763872246211,-3446.40817865,0.00038025,4]
[394682398,1763872246220,-553.64,0.00038035,2]
[394682399,1763872246230,-255.09798092,0.00038043,2]
[394682400,1763872246239,-206.3,0.00038087,30]
[394682401,1763872246248,-215.57079,0.00038088,30]
[394682402,1763872246258,-3446.40817865,0.0003812,4]
[394682403,1763872246268,-2207.86144492,0.00038122,2]
[394682404,1763872246277,-3446.40817865,0.0003814,4]
[394682405,1763872246286,-1034.49,0.0003816,2]
[394682406,1763872246296,-221.3137655,0.00038185,120]
[394682407,1763872246305,-287.45176979,0.00038191,11]
[394682408,1763872246315,-262.53390634,0.00038224,15]
[394682410,1763872246324,-3843.81242981,0.00038225,2]
[394682411,1763872246333,-3446.40817865,0.00038277,4]
[394682412,1763872246343,-215.57079,0.00038288,30]
[394682413,1763872246353,-3446.40817865,0.00038301,4]
[394682414,1763872246362,-3446.40817865,0.00038317,4]
[394682415,1763872246371,-3446.40817865,0.00038326,4]
[394682416,1763872246381,-736.0,0.00038335,5]
[394682417,1763872246391,-3446.40817865,0.00038336,4]
[394682418,1763872246410,-3446.40817865,0.00038346,4]
[394682419,1763872246419,-350.87,0.00038356,2]
[394682420,1763872246429,-500.0,0.00038356,2]
[394682421,1763872246438,-1271.35,0.00038356,2]
[394682422,1763872246447,-500.0,0.00038356,2]
[394682423,1763872246457,-500.0,0.00038356,2]
[394682424,1763872246465,-300.0,0.00038356,2]
[394682425,1763872246475,-500.0,0.00038356,10]
[394682426,1763872246485,-414.16829224,0.00038356,2]
[394682427,1763872246494,-150.0,0.00038356,5]
[394682428,1763872246503,-250.0,0.00038356,5]
[394682429,1763872246513,-6892.8163573,0.00038391,4]
[394682430,1763872246522,-215.57079,0.00038488,30]
[394682431,1763872246530,-1200.52,0.00038548,2]
[394682432,1763872246539,-336.49,0.00038548,2]
[394682433,1763872246548,-262.53390634,0.00038559,15]
[394682434,1763872246558,-3446.40817865,0.00038571,4]
[394682435,1763872246567,-6892.8163573,0.000386,4]
[394682436,1763872246703,-3843.81242981,0.00038607,2]
[394682437,1763872246718,-3446.40817865,0.0003861,4]
[394682438,1763872246728,-3446.40817865,0.0003862,4]
[394682439,1763872246737,-3446.40817865,0.00038624,4]
[394682440,1763872246747,-350.87,0.0003863,2]
[394682441,1763872246757,-500.0,0.0003863,2]
[394682442,1763872246766,-775.92377039,0.0003863,2]
[394682443,1763872246780,-495.42622961,0.0003863,2]
[394682444,1763872246790,-500.0,0.0003863,2]
[394682445,1763872246799,-500.0,0.0003863,2]
[394682446,1763872246808,-343.12922892,0.0003863,2]
[394682447,1763872246817,-500.0,0.0003863,10]
[394682448,1763872246827,-608.37118999,0.00038658,4]
[394682457,1763872247498,-2838.03698866,0.00038658,4]
[394682458,1763872247507,-3446.40817865,0.00038668,4]
[394682459,1763872247516,-2207.86144492,0.00038678,2]
[394682460,1763872247525,-2404.94549223,0.0003868,4]
[394682461,1763872247536,-1041.46268642,0.0003868,4]
[394682462,1763872247545,-215.57079,0.00038688,30]
[394682463,1763872247556,-3446.40817865,0.0003869,4]
[394682464,1763872247566,-528.55837318,0.000387,30]
[394682465,1763872247576,-2406.88162682,0.000387,30]
[394682466,1763872247586,-255.09798092,0.00038757,2]
[394682467,1763872247595,-3446.40817865,0.0003877,4]
[394682468,1763872247606,-3446.40817865,0.0003878,4]
[394682469,1763872247615,-3446.40817865,0.0003879,4]
[394682470,1763872247624,-4035.81341542,0.000388,14]
[394682471,1763872247634,-3446.40817865,0.0003885,4]
[394682472,1763872247643,-3446.40817865,0.00038874,4]
[394682473,1763872247652,-1034.49,0.0003888,2]
[394682474,1763872247661,-3446.40817865,0.00038884,4]
[394682475,1763872247671,-262.53390634,0.00038893,15]
[394682476,1763872247681,-350.87,0.00038904,2]
[394682477,1763872247690,-500.0,0.00038904,2]
[394682478,1763872247700,-1271.35,0.00038904,2]
[394682479,1763872247709,-500.0,0.00038904,2]
[394682480,1763872247718,-500.0,0.00038904,2]
[394682481,1763872247727,-500.0,0.00038904,10]
[394682482,1763872247736,-3446.40817865,0.00038925,4]
[394682483,1763872247746,-3446.40817865,0.00038948,4]
[394682484,1763872247755,-3446.40817865,0.0003896,4]
[394682485,1763872247764,-128.03310628,0.00038989,2]
[394682486,1763872247775,-3715.77932353,0.00038989,2]
[394682487,1763872247785,-769.07233486,0.00039,2]
[394682488,1763872247796,-1257.4433806,0.00039,2]
[394682489,1763872247811,-993.0,0.00039,2]
[394682490,1763872247822,-259.84364934,0.00039,2]
[394682494,1763872936758,833.3,0.00013699,2]
[394682511,1763873431568,-328.0,0.00017688,2]
[394682512,1763873431579,-120.05563965,0.00017688,2]
[394682513,1763873431780,-179.94436035,0.00017688,2]
[394682514,1763873431789,-250.0,0.00017688,2]
[394682515,1763873431799,-159.64,0.00017688,2]
[394682516,1763873431808,-300.0,0.00018243,2]
[394682517,1763873431818,-300.0,0.00018243,2]
[394682518,1763873431827,-258.44664034,0.00018243,2]
[394682519,1763873431836,-180.16126704,0.00018856,2]
[394682520,1763873431845,-159.64,0.00019296,2]
[394682521,1763873431855,-250.0,0.00019457,2]
[394682522,1763873431864,-300.0,0.00019457,2]
[394682523,1763873431873,-188.32,0.000196,7]
[394682524,1763873431883,-774.92773227,0.00020187,2]
[394682525,1763873431894,-58.37226773,0.00020187,2]
[394682527,1763873431903,-159.64,0.00020904,2]
[394682529,1763873431911,-426.78462315,0.00021115,2]
[394682531,1763873431921,-1200.0,0.00021123,2]
[394682533,1763873431930,-150.99,0.00021168,2]
[394682535,1763873431939,-300.0,0.00022411,2]
[394682537,1763873431948,-519.22002465,0.00022412,42]
[394682539,1763873431957,-159.64,0.00022512,2]
[394682551,1763873432093,-1680.0,0.00023083,2]
[394682552,1763873432103,-576.0,0.00023456,2]
[394682553,1763873432112,-609.0,0.00023456,2]
[394682554,1763873432121,-1320.0,0.00023456,2]
[394682555,1763873432130,-840.0,0.00023456,2]
[394682556,1763873432140,-169.159,0.00023456,2]
[394682557,1763873432149,-2659.0,0.00023456,2]
[394682558,1763873432158,-150.0,0.00023456,2]
[394682559,1763873432167,-561.0,0.00023456,2]
[394682560,1763873432176,-159.64,0.0002412,2]
[394682561,1763873432185,-519.22002455,0.00024233,47]
[394682562,1763873432195,-300.0,0.00024343,2]
[394682563,1763873432206,-444.0,0.00025225,2]
[394682564,1763873432216,-159.64,0.00025728,2]
[394682565,1763873432226,-519.22002455,0.00026055,51]
[394682566,1763873432235,-1320.0,0.00026456,2]
[394682567,1763873432244,-2659.0,0.00026456,2]
[394682568,1763873432258,-150.0,0.00026456,2]
[394682569,1763873432267,-561.0,0.00026456,2]
[394682570,1763873432276,-833.3,0.00026676,2]
[394682571,1763873432285,-159.64,0.00027337,2]
[394682572,1763873432295,-519.22002455,0.00027876,55]
[394682573,1763873432304,-159.64,0.00028945,2]
[394682574,1763873432314,-1320.0,0.00029456,2]
[394682575,1763873432323,-166.66,0.00029665,30]
[394682576,1763873432332,-519.22002455,0.00029697,60]
[394682577,1763873432342,-166.66,0.00030289,30]
[394682578,1763873432351,-159.64,0.00030553,2]
[394682579,1763873432360,-166.66,0.00030914,30]
[394682580,1763873432369,-2751.0,0.00031431,120]
[394682581,1763873432378,-519.22002455,0.00031519,64]
[394682582,1763873432387,-166.66,0.00031538,30]
[394682583,1763873432396,-151.0,0.00031733,2]
[394682584,1763873432413,-156.587,0.00031733,2]
[394682585,1763873432424,-313.05356623,0.00031733,2]
[394682586,1763873432433,-159.64,0.00032161,2]
[394682587,1763873432443,-166.66,0.00032163,30]
[394682588,1763873432453,-1319.0,0.00032456,2]
[394682589,1763873432463,-166.66,0.00032787,30]
[394682590,1763873432473,-833.3,0.00033165,2]
[394682591,1763873432482,-519.22002455,0.0003334,68]
[394682592,1763873432491,-9457.8559,0.00033565,2]
[394682593,1763873432501,-181.67,0.00033578,120]
[394682594,1763873432512,-64445.79,0.00033665,2]
[394682595,1763873432521,-159.64,0.00033769,2]
[394682596,1763873432530,-12267.19,0.00034096,2]
[394682597,1763873432539,-427.137,0.00034212,38]
[394682598,1763873432549,-500.0,0.00034521,2]
[394682599,1763873432558,-797.48877512,0.00035,7]
[394682600,1763873432567,-519.22002455,0.00035161,73]
[394682601,1763873432578,-865.9,0.00035289,5]
[394682602,1763873432587,-1882.0,0.000353,2]
[394682603,1763873432596,-159.64,0.00035377,2]
[394682604,1763873432606,-389.63,0.00035879,2]
[394682605,1763873432615,-1000.0,0.000359,120]
[394682606,1763873432624,-1038.56,0.00036,2]
[394682607,1763873432633,-150.0,0.00036,7]
[394682608,1763873432642,-150.0,0.00036,7]
[394682609,1763873432656,-150.0,0.00036,7]
[394682610,1763873432665,-150.0,0.00036,7]
[394682611,1763873432674,-150.0,0.00036,7]
[394682612,1763873432683,-150.0,0.00036,7]
[394682613,1763873432692,-150.0,0.00036,7]
[394682614,1763873432701,-1000.0,0.00036056,2]
[394682615,1763873432710,-159.93,0.00036153,2]
[394682616,1763873432719,-1038.56,0.0003672,2]
[394682617,1763873432729,-519.22002455,0.00036983,77]
[394682618,1763873432738,-168.01,0.00037306,120]
[394682619,1763873432747,-1000.0,0.00037408,2]
[394682620,1763873432756,-1038.56,0.0003744,2]
[394682621,1763873432765,-2000.0,0.00038,2]
[394682622,1763873432774,-1038.56,0.0003816,2]
[394682623,1763873432783,-500.0,0.00038356,2]
[394682624,1763873432793,-1112.43,0.00038356,2]
[394682625,1763873432802,-300.0,0.00038356,2]
[394682626,1763873432812,-500.0,0.00038356,10]
[394682627,1763873432821,-500.0,0.00038356,2]
[394682628,1763873432830,-150.0,0.00038356,2]
[394682629,1763873432839,-150.0,0.00038356,2]
[394682630,1763873432848,-150.0,0.00038356,2]
[394682631,1763873432858,-150.0,0.00038356,2]
[394682632,1763873432867,-400.59024056,0.00038356,2]
[394682633,1763873432876,-150.0,0.00038356,5]
[394682634,1763873432885,-200.0,0.00038356,4]
[394682635,1763873432894,-150.0,0.00038493,2]
[394682636,1763873432903,-150.0,0.00038493,2]
[394682637,1763873432912,-150.0,0.00038493,2]
[394682638,1763873432921,-162.86151761,0.0003863,2]
[394682641,1763873437538,-127.23860218,0.0003863,2]
[394682642,1763873437549,-150.0,0.0003863,2]
[394682643,1763873437558,-51.080997,0.0003863,2]
[394682644,1763873437688,-98.919003,0.0003863,2]
[394682645,1763873437698,-500.0,0.0003863,2]
[394682646,1763873437708,-1112.43,0.0003863,2]
[394682647,1763873437717,-300.0,0.0003863,2]
[394682648,1763873437727,-500.0,0.0003863,10]
[394682649,1763873437736,-500.0,0.0003863,2]
[394682650,1763873437747,-1655.89608373,0.00038658,2]
[394682651,1763873437756,-374.4782,0.00038658,2]
[394682652,1763873437765,-500.0,0.00038757,15]
[394682653,1763873437775,-623.88082588,0.00038757,15]
[394682654,1763873437783,-5223.27909996,0.00038758,2]
[394682655,1763873437814,-1247.16992266,0.00038758,2]
[394682656,1763873437827,-964.0942,0.00038758,2]
[394682686,1763873439639,-548.99757851,0.00038758,2]
[394682687,1763873439651,-283.565,0.00038758,2]
[394682737,1763873444897,-264.264,0.000387,2]
[394682738,1763873445688,-835.44812062,0.000387,2]
[394682739,1763873445697,-286.99648372,0.000387,2]
[394682740,1763873445706,-1201.33824157,0.000387,2]
[394682741,1763873445725,-34005.51488737,0.00038758,2]
[394682742,1763873445736,-359.97329285,0.00038758,2]
[394682743,1763873445745,-1000.0,0.0003876,2]
[394682744,1763873445754,-150.0,0.00038767,2]
[394682745,1763873445764,-150.0,0.00038767,2]
[394682746,1763873445774,-519.22002455,0.00038804,81]
[394682747,1763873445783,-2000.0,0.00038805,3]
[394682748,1763873445793,-150.0,0.00038822,2]
[394682750,1763873445802,-150.0,0.00038822,2]
[394682752,1763873445812,-150.0,0.00038822,2]
[394682754,1763873445822,-150.0,0.00038822,2]
[394682756,1763873445831,-150.0,0.00038822,2]
[394682758,1763873445840,-150.0,0.00038822,2]
[394682759,1763873445850,-150.0,0.00038822,2]
[394682760,1763873445859,-150.0,0.00038822,2]
[394682761,1763873445869,-168.52,0.00038822,2]
[394682762,1763873445879,-1038.56,0.0003888,2]
[394682763,1763873445888,-150.62449306,0.0003888,2]
[394682764,1763873445897,-150.0,0.00038904,2]
[394682765,1763873445907,-150.0,0.00038904,2]
[394682766,1763873445916,-500.0,0.00038904,2]
[394682767,1763873445925,-1112.43,0.00038904,2]
[394682768,1763873445934,-300.0,0.00038904,2]
[394682769,1763873445944,-500.0,0.00038904,10]
[394682770,1763873445954,-500.0,0.00038904,2]
[394682771,1763873445964,-1655.8960837,0.00038907,2]
[394682772,1763873445974,-14845.6406352,0.00039,2]
[394682773,1763873445983,-1874.66913186,0.00039,2]
[394682774,1763873445993,-1273.25541537,0.00039,120]
[394682775,1763873446002,-500.0,0.00039,120]
[394682776,1763873446011,-150.0,0.00039,2]
[394682778,1763873446021,-816.09404,0.00039,2]
[394682779,1763873446030,-174.70771858,0.00039013,120]
[394682780,1763873446039,-150.0,0.00039041,2]
[394682781,1763873446048,-215.57079,0.00039088,30]
[394682782,1763873446058,-150.0,0.00039137,2]
[394682783,1763873446067,-1655.8960837,0.00039156,2]
[394682784,1763873446080,-500.0,0.00039178,2]
[394682785,1763873446090,-1112.43,0.00039178,2]
[394682786,1763873446100,-300.0,0.00039178,2]
[394682787,1763873446109,-500.0,0.00039178,10]
[394682788,1763873446119,-500.0,0.00039178,2]
[394682790,1763873446129,-150.0,0.00039274,2]
[394682792,1763873446140,-215.57079,0.00039288,30]
[394682794,1763873446151,-305.38,0.00039342,5]
[394682796,1763873446161,-1655.8960837,0.00039405,2]
[394682797,1763873446171,-202.06295991,0.00039411,2]
[394682798,1763873446181,-203.79281274,0.00039451,7]
[394682800,1763873446192,-500.0,0.00039452,2]
[394682802,1763873446201,-1112.43,0.00039452,2]
[394682804,1763873446214,-300.0,0.00039452,2]
[394682806,1763873446224,-500.0,0.00039452,10]
[394682808,1763873446234,-500.0,0.00039452,2]
[394682809,1763873446244,-215.57079,0.00039488,30]
[394682810,1763873446254,-64871.49,0.000395,2]
[394682811,1763873446264,-1296.18914535,0.000395,2]
[394682812,1763873446274,-587.0,0.00039538,5]
[394682813,1763873446285,-815.0,0.00039538,2]
[394682814,1763873446295,-1038.56,0.000396,30]
[394682815,1763873446305,-833.3,0.00039654,2]
[394682816,1763873446315,-1655.8960837,0.00039654,2]
[394682817,1763873446324,-300.230838,0.00039674,96]
[394682818,1763873446334,-215.57079,0.00039688,30]
[394682819,1763873446344,-157.52034384,0.000397,15]
[394682820,1763873446354,-1921.90621495,0.000397,2]
[394682821,1763873446364,-150.0,0.00039717,120]
[394682822,1763873446373,-500.0,0.00039726,2]
[394682823,1763873446383,-1112.43,0.00039726,2]
[394682824,1763873446392,-300.0,0.00039726,2]
[394682825,1763873446402,-500.0,0.00039726,10]
[394682826,1763873446411,-500.0,0.00039726,2]
[394682827,1763873446422,-1000.0,0.00039726,120]
[394682828,1763873446431,-1000.0,0.00039726,120]
[394682829,1763873446445,-294.88381576,0.00039726,120]
[394682830,1763873446460,-705.11618424,0.00039726,120]
[394682831,1763873446470,-885.48053841,0.00039726,120]
[394682832,1763873446480,-300.0,0.00039726,7]
[394682833,1763873446489,-1015.0,0.00039726,120]
[394682834,1763873446499,-178.53916735,0.00039726,5]
[394682835,1763873446602,-25.88471324,0.00039726,5]
[394682836,1763873446616,-250.0,0.00039726,5]
[394682837,1763873446626,-1240.04497998,0.0003979,4]
[394682838,1763873446638,-500.4799978,0.0003979,4]
[394682839,1763873446649,-753.01482349,0.0003979,4]
[394682859,1763874518734,187.76,0.00016,10]
[394682863,1763874631831,-225.21969723,0.00023019,2]
[394682864,1763874631840,-401.09606231,0.00023019,2]
[394682865,1763874631851,-83.90393769,0.00023019,2]
[394682866,1763874631861,-195.50917891,0.00023119,2]
[394682867,1763874631871,-411.6815,0.00023119,2]
[394682868,1763874631881,-131.01100374,0.0002322,2]
[394682869,1763874632032,-971.12326414,0.0002322,2]
[394682870,1763874632042,-1635.41216239,0.00027632,2]
[394682871,1763874632053,-332.0,0.0003205,2]
[394682872,1763874632062,-200.0,0.00032114,2]
[394682873,1763874632071,-532.91981918,0.00032178,2]
[394682874,1763874632081,-870.69551343,0.00032768,2]
[394682875,1763874632091,-300.0,0.00032966,3]
[394682876,1763874632100,-1600.0,0.00032966,3]
[394682878,1763874632109,-400.0,0.00032966,3]
[394682880,1763874632119,-14645.9645,0.00032967,2]
[394682882,1763874632127,-200.0,0.00033062,2]
[394682884,1763874632136,-1541.0,0.00033066,3]
[394682886,1763874632145,-255.0,0.00033066,2]
[394682888,1763874632155,-8224.55003253,0.00033067,2]
[394682891,1763874632166,-22068.24198307,0.00033067,2]
[394682897,1763874637870,-252.14002673,0.00033067,2]
[394682898,1763874637994,-1140.67954849,0.00033067,2]
[394682899,1763874639868,-2134.55639322,0.00033067,2]
[394682901,1763874644250,-747.83079455,0.00033067,2]
[394682905,1763874644359,-20513.64737272,0.00033067,2]
[394682906,1763874644368,-1000.0,0.00033122,2]
[394682907,1763874644378,-250.0,0.00033389,2]
[394682908,1763874644387,-387.0,0.00033434,2]
[394682909,1763874644397,-667.01,0.00033434,2]
[394682910,1763874644407,-2710.33,0.00033434,2]